Cogmind - Beta 13 @@@ ROGUE MODE // 2024.04.10 @ 10:13:20 Player: anthonyiye Result: Destroyed by S-43 Plague with Heavy Machine Gun Performance ------------- Evolutions (8) 4000 Regions Visited (16) 3200 Robots Destroyed (104) 520 Value Destroyed (4294) 4294 Prototype IDs (11) 220 Alien Tech Used (1) 200 Bonus (2040) 2040 TOTAL SCORE: 14474 Bonus ------- High Alert Combat Kills 40 Entered DSFs 1000 Scanned by Researcher 1000 Cogmind --------- Core Integrity 0/1450 Matter 51/300 Energy 98/100 System Corruption 12% Temperature Cool (0) Movement Core (50) Location -2/Section 7 Parts ------- > --- POWER (3) -------- (None) > --- PROPULSION (6) --- (None) > --- UTILITY (11) ----- Spacefold Activator > --- WEAPON (3) ------- (None) > --- INVENTORY (5) ---- Quantum Reactor Advanced Signal Interpreter Improved Medium Armor Plating Improved Medium Armor Plating Point Singularity Launcher Peak State ------------ > --- POWER ------------ Backup Power III Neutrino Core > --- PROPULSION ------- Field Propulsion Array Field Propulsion Array Cooled Impulse Thruster Cooled Impulse Thruster > --- UTILITY ---------- Advanced Sensor Array Cloaking Device Cloaking Device Advanced Cloaking Device Advanced Cloaking Device Backup Plating III Backup Plating III Backup Plating III Improved Medium Armor Plating > --- WEAPON ----------- Heavy Flail > --- INVENTORY -------- Quantum Reactor Advanced Sensor Array Improved Medium Armor Plating Enhanced Quantum Rifle Point Singularity Launcher [Rating: 107] Favorites ----------- Power Improved Ion Engine Engine Improved Ion Engine Power Core Neutrino Core Reactor Quantum Reactor Propulsion Light Treads Treads Light Treads Leg Armored Leg Hover Unit Improved Gyrokinetic Inverter Flight Unit Cooled Impulse Thruster Utility Advanced Visual Processing Unit Device Improved Heat Sink Storage Large Storage Unit Processor Advanced Visual Processing Unit Hackware Hacking Suite Protection Reactive Plating Artifact Spacefold Activator Weapon Improved Medium Laser Energy Gun Improved Medium Laser Energy Cannon Phase Cannon Ballistic Gun High-powered Shotgun Ballistic Cannon Mass Driver Launcher Rocket Launcher Impact Weapon Heavy Flail Slashing Weapon Chainsword Piercing Weapon Heavy Pick Special Melee Weapon Datajack Build | -11 -10 -9 -8 -7 -6 -6 -6 -5 -5 -4 -4 -3 -3 -2 -2 -2 ------- Run | Yrd Mat Mat Mat Fac Fac Low Low Fac DSF Fac Upp Res DSF Res Tes Sec Slots Evolved 16 | . . 2 2 2 2 . . 2 . 2 . 2 . 2 . . Power 2 | . . . . 1 . . . . . 1 . . . . . . Propulsion 4 | . . . . 1 . . . 1 . . . 1 . 1 . . Utility 9 | . . 2 2 . 2 . . 1 . 1 . . . 1 . . Weapon 1 | . . . . . . . . . . . . 1 . . . . Parts Attached 161 | 6 6 16 20 10 30 14 2 1 . 20 1 2 10 6 11 6 Power 23 | 1 2 1 1 2 4 1 1 . . 3 . 1 1 1 4 . Engine 11 | 1 2 1 1 2 2 1 . . . . . . . . 1 . Core 8 | . . . . . 2 . 1 . . 3 . . 1 . 1 . Reactor 4 | . . . . . . . . . . . . 1 . 1 2 . Propulsion 37 | 2 . 5 4 4 6 5 . . . 5 . 1 2 2 . 1 Treads 12 | 2 . 5 4 1 . . . . . . . . . . . . Leg 17 | . . . . 3 6 5 . . . 3 . . . . . . Wheel . | . . . . . . . . . . . . . . . . . Hover 2 | . . . . . . . . . . 2 . . . . . . Flight 6 | . . . . . . . . . . . . 1 2 2 . 1 Utility 60 | 1 3 7 8 2 13 2 1 . . 6 . . 5 3 5 4 Device 32 | . . 2 5 2 9 . . . . 4 . . 3 2 2 3 Storage 4 | 1 1 1 . . . . . . . . . . 1 . . . Processor 10 | . . 3 1 . 3 1 1 . . 1 . . . . . . Hackware 3 | . . . . . 1 . . . . 1 . . 1 . . . Protection 10 | . 2 1 2 . . 1 . . . . . . . 1 3 . Artifact 1 | . . . . . . . . . . . . . . . . 1 Weapon 41 | 2 1 3 7 2 7 6 . 1 . 6 1 . 2 . 2 1 Energy Gun 10 | 1 1 1 2 . 1 . . 1 . 2 . . . . 1 . Energy Cannon 1 | . . . . . 1 . . . . . . . . . . . Ballistic Gun 10 | 1 . 2 2 1 1 2 . . . 1 . . . . . . Ballistic Cannon 3 | . . . . . . 1 . . . 2 . . . . . . Launcher 9 | . . . 2 . 1 1 . . . 1 1 . 1 . 1 1 Special Weapon . | . . . . . . . . . . . . . . . . . Impact Weapon 1 | . . . . . . . . . . . . . 1 . . . Slashing Weapon 3 | . . . . 1 2 . . . . . . . . . . . Piercing Weapon 3 | . . . . . 1 2 . . . . . . . . . . Special Melee Weapon 1 | . . . 1 . . . . . . . . . . . . . Unidentified Prototypes 7 | . 1 . . . 1 . . . . . 1 . . 1 1 2 Parts Lost 81 | . 2 3 8 2 15 11 . . 1 21 1 . 1 1 8 7 Power 15 | . 1 . 1 1 3 2 . . . 4 . . . . 3 . Propulsion 18 | . . 1 1 . 2 2 . . . 7 . . . 1 1 3 Utility 31 | . . 2 4 . 6 4 . . 1 6 . . 1 . 4 3 Weapon 17 | . 1 . 2 1 4 3 . . . 4 1 . . . . 1 Highest Loss Streak 7 | . 1 1 4 1 3 6 . . 1 6 6 . 1 1 7 5 To Critical Strikes 1 | . . . . 1 . . . . . . . . . . . . Average Slot Usage (%) 81 | . 96 98 89 99 94 59 69 73 75 80 . 5 35 47 54 25 Engine 6 | . 13 11 9 14 9 . . . . . . . . . 2 . Core 2 | . . . . . 1 . 2 5 5 10 . . 2 4 3 . Treads 8 | . 28 20 17 7 . . . . . . . . . . . . Leg 7 | . . . . 15 19 17 20 17 17 10 . . . . . . Flight 1 | . . . . . . . . . . . . 2 12 15 16 7 Device 16 | . . 11 19 23 30 11 6 5 5 16 . . 8 14 19 10 Storage 6 | . 14 11 9 7 6 6 6 5 4 . . . . . . . Processor 8 | . . 10 7 7 9 7 13 17 17 20 . . . . . . Hackware 2 | . . . . . 4 6 6 5 5 8 . . . . . . Protection 5 | . 12 11 8 7 . 3 6 5 5 . . . . 3 1 . Energy Gun 5 | . 12 12 10 3 . . . 3 5 . . . . . . 3 Ballistic Gun 5 | . 14 9 6 10 6 2 . . . 3 . . . . . . Naked Turns 219 | . . . . . . . . . . 28 148 43 . . . . Heaviest Build 53 | 11 24 39 45 53 51 41 46 50 50 53 . 8 38 44 44 28 Greatest Support 69 | 40 40 40 49 69 54 48 48 48 48 52 3 8 38 45 44 29 Greatest Overweight (x) 15 | 2 . 1 1 1 15 10 . 1 1 6 . . . . . 3 Average Overweight (x) . | . . . . . . . . . . . . . . . . . Largest Inventory Capacity 20 | 8 10 15 15 15 15 15 15 15 15 5 5 5 20 5 5 5 Average Capacity 11 | 7 8 10 15 15 15 15 15 15 13 5 5 5 5 5 5 5 Most Carried 15 | 2 9 11 15 15 15 15 15 14 14 5 5 5 5 5 5 5 Average Carried 9 | 1 5 9 11 14 13 12 14 13 12 3 4 4 3 4 4 4 Final Capacity 15 | 8 10 15 15 15 15 15 15 15 5 5 5 5 5 5 5 5 Final Carried 15 | 2 8 11 15 15 15 15 14 14 5 4 5 5 4 5 4 5 Class Distribution -------------------- 54% | Mutant 21% | Scavenger-Mutant 7% | Scavenger-Skirmisher 7% | Sprinter 5% | Infiltrator-Mutant Dominant Class ---------------- Mutant | -10/Materials Scavenger-Mutant | -9/Materials Mutant | -8/Materials Mutant | -7/Factory Mutant | -6/Factory Mutant | -6/Lower Caves Mutant | -6/Lower Caves Mutant | -5/Factory Mutant | -5/DSF Scavenger-Skirmisher | -4/Factory Mutant | -4/Upper Caves Mutant | -3/Research Mutant | -3/DSF Sprinter | -2/Research Sprinter | -2/Testing Mutant | -2/Section 7 Resources | -11 -10 -9 -8 -7 -6 -6 -6 -5 -5 -4 -4 -3 -3 -2 -2 -2 ----------- Run | Yrd Mat Mat Mat Fac Fac Low Low Fac DSF Fac Upp Res DSF Res Tes Sec Matter Collected 3065 | 260 81 300 413 134 682 278 28 . . 601 57 145 20 . 66 . Remotely . | . . . . . . . . . . . . . . . . . Salvage Created 3524 | . 419 585 628 134 930 187 7 . . 554 18 . . . 62 . Parts 205 | . 29 45 29 7 56 5 . . . 33 1 . . . . . Haulers Intercepted . | . . . . . . . . . . . . . . . . . Recyclers Shooed 8 | . . 1 1 . 5 . . . . 1 . . . . . . Parts Field Recycled . | . . . . . . . . . . . . . . . . . Retrieved Matter . | . . . . . . . . . . . . . . . . . Parts Self-Destructed 8 | . . . . . . 8 . . . . . . . . . . Prevented . | . . . . . . . . . . . . . . . . . Kills | -11 -10 -9 -8 -7 -6 -6 -6 -5 -5 -4 -4 -3 -3 -2 -2 -2 ------- Run | Yrd Mat Mat Mat Fac Fac Low Low Fac DSF Fac Upp Res DSF Res Tes Sec Combat Hostiles Destroyed 81 | . 10 13 18 3 18 5 1 . . 13 . . . . . . Melee 1 | . . . . . 1 . . . . . . . . . . . Guns 41 | . 10 12 8 3 3 3 . . . 2 . . . . . . Cannons 13 | . . . . . 5 . 1 . . 7 . . . . . . AOE 23 | . . . 9 . 8 2 . . . 4 . . . . . . Classes Destroyed 17 | . 5 3 . 2 5 1 . . . . . . . . 1 . Worker 5 | . 1 1 1 . . . . . . 2 . . . . . . Builder 5 | . . . . . 4 . . . . 1 . . . . . . Tunneler 1 | . . . . . 1 . . . . . . . . . . . Recycler 2 | . 1 . . . . . . . . . . . . . 1 . Mechanic 1 | . . . . . 1 . . . . . . . . . . . Operator 1 | . . 1 . . . . . . . . . . . . . . Watcher 6 | . 1 2 2 . 1 . . . . . . . . . . . Swarmer 10 | . 3 4 3 . . . . . . . . . . . . . Grunt 35 | . 7 5 12 . 5 2 . . . 4 . . . . . . Brawler 1 | . . 1 . . . . . . . . . . . . . . Duelist 1 | . . . . . . 1 . . . . . . . . . . Researcher 2 | . . . . . . . . . . . . . . . 1 1 Sentry 10 | . . 3 3 1 1 . . . . 2 . . . . . . Specialist 4 | . . . . . 4 . . . . . . . . . . . Hunter 3 | . . . . 1 2 . . . . . . . . . . . Programmer 14 | . . . . 1 5 . 1 . . 7 . . . . . . Heavy 1 | . . . . . 1 . . . . . . . . . . . Decomposer 1 | . . . . . . . . . . . 1 . . . . . Thug 2 | . . . . . . 2 . . . . . . . . . . Best Kill Streak 11 | . 5 4 11 1 6 3 1 . . 5 . . . . 2 1 Combat Bots Only 9 | . 5 4 9 1 5 3 1 . . 4 . . . . . . Max Kills in Single Turn 3 | . 2 2 2 1 3 1 1 . . 3 1 . . . 2 1 Gunslinging 1 | . . 1 . . . . . . . . . . . . . . Exploded 3 | . . . 2 . 2 1 . . . 3 . . . . . . Melee 1 | . . . . . 1 . . . . . . . . . . . Uniques/NPCs Destroyed . | . . . . . . . . . . . . . . . . . Combat | -11 -10 -9 -8 -7 -6 -6 -6 -5 -5 -4 -4 -3 -3 -2 -2 -2 -------- Run | Yrd Mat Mat Mat Fac Fac Low Low Fac DSF Fac Upp Res DSF Res Tes Sec Hostile Shots Fired 1044 | . 60 86 99 83 222 98 14 . 7 182 2 . . 27 65 99 Missed 354 | . 18 23 30 33 78 32 4 . 3 48 1 . . 18 20 46 Damage Taken 13659 | . 450 816 1234 452 2687 1489 146 . 157 3062 25 . 142 216 1558 1225 Core 3630 | . 33 145 148 42 369 436 14 . 12 914 25 . 42 28 587 835 Absorbed by Shields . | . . . . . . . . . . . . . . . . . Redirected to Shielding 8 | . 8 . . . . . . . . . . . . . . . Ignored by Resistances 111 | . . . 42 69 . . . . . . . . . . . . Regen/Repaired (Parts) 162 | . . . 114 . . . . . . . . . . . 48 . Core Remaining (%) 70 | 100 86 63 73 94 . . 3 . 98 . 18 . 96 . . . Volleys Fired 345 | . 37 75 54 17 78 21 11 . . 46 . . . . 2 4 Largest 2 | . 2 2 2 2 2 2 1 . . 2 . . . . 2 2 Hottest 160 | . 76 112 119 81 160 58 57 . . 149 . . . . 120 120 Shots Fired 587 | . 68 131 102 32 117 32 11 . . 84 . . 1 . 4 5 Gun 427 | . 68 131 93 32 47 27 . . . 23 . . . . 2 4 Cannon 120 | . . . . . 55 . 11 . . 54 . . . . . . Launcher 40 | . . . 9 . 15 5 . . . 7 . . 1 . 2 1 Special . | . . . . . . . . . . . . . . . . . Kinetic 296 | . 34 65 29 24 37 27 11 . . 69 . . . . . . Thermal 234 | . 17 66 64 8 65 . . . . 8 . . . . 2 4 Explosive 40 | . . . 9 . 15 5 . . . 7 . . 1 . 2 1 Electromagnetic 17 | . 17 . . . . . . . . . . . . . . . Robot Hit Streak 20 | . 6 9 20 6 13 15 5 . . 7 . . . . 5 7 Robot Miss Streak 7 | . 3 3 4 3 3 7 5 . . 5 . . . . . 1 Penetration Max 1 | . . . . . . . . . . 1 . . . . . . Secondary Targets 3 | . 1 2 . . . . . . . . . . . . . . Max Gunslinging Chain 1 | . 1 1 . . . . . . . . . . . . . . Shots Hit Robots 376 | . 41 79 65 20 90 23 6 . . 44 . . . . 4 4 Core Hits 235 | . 20 29 47 11 51 33 1 . . 34 2 . . . 3 4 Critical Kills . | . . . . . . . . . . . . . . . . . Critical Parts Destroyed . | . . . . . . . . . . . . . . . . . Critical Strikes 14 | . 2 2 3 1 . . 3 . . 3 . . . . . . Burn 8 | . 2 2 3 1 . . . . . . . . . . . . Blast 6 | . . . . . . . 3 . . 3 . . . . . . Melee Attacks 44 | . . . 3 . 17 10 . . . . . . . 2 12 . Impact 14 | . . . . . . . . . . . . . . 2 12 . Slashing 4 | . . . . . 4 . . . . . . . . . . . Piercing 23 | . . . . . 13 10 . . . . . . . . . . Sneak Attacks 5 | . . . . . 5 . . . . . . . . . . . Combat Hostiles . | . . . . . . . . . . . . . . . . . Follow-up Attacks . | . . . . . . . . . . . . . . . . . Damage Inflicted 11844 | . 545 1164 2039 374 3107 879 278 . . 2885 12 . . . 308 253 Guns 4715 | . 540 1157 1086 374 581 502 . . . 375 . . . . 30 70 Cannons 3039 | . . . . . 1319 . 278 . . 1442 . . . . . . Explosions 3653 | . . . 949 . 800 377 . . . 1068 . . . . 278 181 Melee 364 | . . . . . 364 . . . . . . . . . . . Ramming 73 | . 5 7 4 . 43 . . . . . 12 . . . . 2 Kinetic 4295 | . 219 448 326 320 439 502 278 . . 1763 . . . . . . Thermal 3359 | . 221 709 760 54 1461 . . . . 54 . . . . 30 70 Explosive 3653 | . . . 949 . 800 377 . . . 1068 . . . . 278 181 Electromagnetic 100 | . 100 . . . . . . . . . . . . . . . Impact . | . . . . . . . . . . . . . . . . . Slashing 189 | . . . . . 189 . . . . . . . . . . . Piercing 175 | . . . . . 175 . . . . . . . . . . . Highest Corruption 13 | . . 4 8 4 5 5 8 . . 13 13 . 5 . 8 12 Average Corruption 5 | . . 2 8 2 3 5 6 . . 4 13 . 5 . 1 8 Corruption Purged . | . . . . . . . . . . . . . . . . . Corruption Blocked 40 | . . . . . . . . . . . . . . . 40 . Effects 200 | . . 10 65 10 26 19 3 . . 42 6 . 2 . 4 13 Message Errors 46 | . . 2 13 3 9 5 1 . . 7 1 . . . 1 4 Matter Fused 54 | . . 3 23 4 5 4 1 . . 8 3 . . . . 3 Heat Flow Errors 24 | . . 1 7 1 3 4 . . . 7 1 . . . . . Energy Discharges 27 | . . 2 7 1 2 4 1 . . 9 . . . . . 1 Parts Rejected 4 | . . . 1 . . . . . . 1 . . . . 2 . Parts Fused 2 | . . 1 . . . 1 . . . . . . . . . . Data Loss (minor) 21 | . . . 8 1 4 . . . . 4 1 . . . 1 2 Data Loss (major) 8 | . . 1 1 . 1 1 . . . 3 . . 1 . . . Misfires 6 | . . . 3 . 1 . . . . 1 . . 1 . . . Alerts 3 | . . . 2 . . . . . . 1 . . . . . . Misdirections 3 | . . . . . . . . . . . . . . . . 3 Weapon Failures 2 | . . . . . 1 . . . . 1 . . . . . . Overload Shots . | . . . . . . . . . . . . . . . . . Overflow Damage 527 | . . . 2 . 99 10 4 . . 144 . . . . 116 152 Projectiles 124 | . . . . . 22 . 4 . . 98 . . . . . . Explosions 326 | . . . 2 . . 10 . . . 46 . . . . 116 152 Melee 77 | . . . . . 77 . . . . . . . . . . . Knockbacks 9 | . . 1 . . . . 2 . . 6 . . . . . . Impact 1 | . . 1 . . . . . . . . . . . . . . Kinetic 7 | . . . . . . . 2 . . 5 . . . . . . Secondary 1 | . . . . . . . . . . 1 . . . . . . Self-Inflicted Damage 621 | . . . . . 159 88 . . . 81 5 . 63 . 69 156 Shots 12 | . . . . . 3 3 . . . 3 . . 1 . 1 1 Rammed 11 | . 3 2 3 . . . . . . . 2 . . . . 1 Targets Rammed 23 | . 4 2 3 . 11 . . . . . 2 . . . . 1 Kicked 11 | . . . . . 11 . . . . . . . . . . . Crushed 1 | . 1 . . . . . . . . . . . . . . . Highest Temperature 541 | . 306 391 541 78 311 268 . . . 246 191 . . . 90 3 Average Temperature 106 | . 89 131 120 18 102 87 . . . 64 105 . . . 50 2 Received Heat Transfer 2376 | . 198 363 504 78 252 675 . . . 216 . . . . 63 27 Effects 14 | . 1 . 8 . 4 . . . . 1 . . . . . . Shutdowns 3 | . . . 3 . . . . . . . . . . . . . Energy Bleed 2 | . . . 1 . . . . . . 1 . . . . . . Interference 5 | . 1 . . . 4 . . . . . . . . . . . Short Circuit 1 | . . . 1 . . . . . . . . . . . . . Damage (minor) 1 | . . . 1 . . . . . . . . . . . . . Damage (major) 2 | . . . 2 . . . . . . . . . . . . . Siege Activations . | . . . . . . . . . . . . . . . . . Robots Corrupted . | . . . . . . . . . . . . . . . . . Combat Hostiles . | . . . . . . . . . . . . . . . . . Parts Fried . | . . . . . . . . . . . . . . . . . Impact Corruptions . | . . . . . . . . . . . . . . . . . Robots Melted 3 | . . 1 1 . 1 . . . . . . . . . . . Combat Hostiles 3 | . . 1 1 . 1 . . . . . . . . . . . Parts Melted 7 | . . 2 1 . 4 . . . . . . . . . . . Heat Transferred 6497 | . 629 1702 1887 185 1854 . . . . 74 . . . . 55 111 Parts Sabotaged . | . . . . . . . . . . . . . . . . . Parts Stolen . | . . . . . . . . . . . . . . . . . Parts Stripped . | . . . . . . . . . . . . . . . . . Power Chain Reactions . | . . . . . . . . . . . . . . . . . Alert | -11 -10 -9 -8 -7 -6 -6 -6 -5 -5 -4 -4 -3 -3 -2 -2 -2 ------- Run | Yrd Mat Mat Mat Fac Fac Low Low Fac DSF Fac Upp Res DSF Res Tes Sec Peak Influence 468 | . 185 167 336 101 468 . . 18 27 229 . 33 73 200 152 250 Initial 112 | . . . 39 51 9 . . 18 12 8 . 18 28 40 112 21 Average 73 | . 56 80 106 42 89 . . 18 15 45 . 27 53 73 95 98 Maximum Alert Level 2 | . . . 1 . 2 . . . . 1 . . . 1 . 1 Low Security (%) 93 | 100 100 100 88 100 79 . . 100 100 96 . 100 100 98 100 81 Level 1 5 | . . . 11 . 12 . . . . 3 . . . 1 . 18 Level 2 1 | . . . . . 7 . . . . . . . . . . . Level 3 . | . . . . . . . . . . . . . . . . . Level 4 . | . . . . . . . . . . . . . . . . . Level 5 . | . . . . . . . . . . . . . . . . . High Security . | . . . . . . . . . . . . . . . . . Max Security . | . . . . . . . . . . . . . . . . . Squads Dispatched 33 | . 3 3 3 3 10 . . . 1 3 . . 2 . 2 3 Investigation 2 | . 1 . . . 1 . . . . . . . . . . . Extermination 10 | . . . . 1 4 . . . . 3 . . . . 1 1 Reinforcement 20 | . 2 3 2 2 5 . . . 1 . . . 2 . 1 2 Assault . | . . . . . . . . . . . . . . . . . Garrison 1 | . . . 1 . . . . . . . . . . . . . Intercept . | . . . . . . . . . . . . . . . . . Searches Triggered . | . . . . . . . . . . . . . . . . . Construction Impeded . | . . . . . . . . . . . . . . . . . Haulers Reinforced . | . . . . . . . . . . . . . . . . . Active Scanning Responses . | . . . . . . . . . . . . . . . . . Cargo Convoy Interrupts 1 | . . . . . 1 . . . . . . . . . . . Stealth | -11 -10 -9 -8 -7 -6 -6 -6 -5 -5 -4 -4 -3 -3 -2 -2 -2 --------- Run | Yrd Mat Mat Mat Fac Fac Low Low Fac DSF Fac Upp Res DSF Res Tes Sec Distress Signals 7 | . . 1 2 . 1 . . . . 1 . . . . . 2 Communications Jammed 38 | . . . . . 38 . . . . . . . . . . . Distress Signals 38 | . . . . . 38 . . . . . . . . . . . Times Spotted 212 | . 18 33 31 6 28 13 1 . 3 22 1 . 5 12 10 29 Peak Tracking Total 22 | . 3 5 6 2 9 6 1 . 3 6 1 . 5 5 8 22 Tactical Retreats 16 | . . . 3 . 3 1 . . 1 2 . . . 2 . 4 Traps | -11 -10 -9 -8 -7 -6 -6 -6 -5 -5 -4 -4 -3 -3 -2 -2 -2 ------- Run | Yrd Mat Mat Mat Fac Fac Low Low Fac DSF Fac Upp Res DSF Res Tes Sec Traps Triggered 11 | . 2 1 . 2 . . . . . . . 1 1 1 2 1 Indirectly . | . . . . . . . . . . . . . . . . . Trap Hack Attempts . | . . . . . . . . . . . . . . . . . Triggered . | . . . . . . . . . . . . . . . . . Disarmed 6 | . 6 . . . . . . . . . . . . . . . Reprogrammed 4 | . . . . . 4 . . . . . . . . . . . Reused 1 | . . . . . 1 . . . . . . . . . . . Traps Extracted . | . . . . . . . . . . . . . . . . . Installed . | . . . . . . . . . . . . . . . . . Triggered 3 | . . . . . 2 . 1 . . . . . . . . . Machines | -11 -10 -9 -8 -7 -6 -6 -6 -5 -5 -4 -4 -3 -3 -2 -2 -2 ---------- Run | Yrd Mat Mat Mat Fac Fac Low Low Fac DSF Fac Upp Res DSF Res Tes Sec Machines Disabled 10 | . 1 1 1 . 4 . . . . 1 . . 1 . . 1 Max in Single Turn 2 | . 1 1 1 . 2 . . . . 1 . . 1 . . 1 Garrison Access 1 | . . . . . . . . . . 1 . . . . . . Machines Repaired . | . . . . . . . . . . . . . . . . . Machines Dismantled . | . . . . . . . . . . . . . . . . . Machines Sabotaged . | . . . . . . . . . . . . . . . . . Overloaded Fab Kills . | . . . . . . . . . . . . . . . . . Hacking | -11 -10 -9 -8 -7 -6 -6 -6 -5 -5 -4 -4 -3 -3 -2 -2 -2 --------- Run | Yrd Mat Mat Mat Fac Fac Low Low Fac DSF Fac Upp Res DSF Res Tes Sec Machines Accessed 42 | . 4 6 7 3 5 1 . 2 . 3 . 2 . 4 3 2 Terminals 28 | . 4 5 5 1 2 . . 2 . 2 . 1 . 3 1 2 Fabricators 2 | . . . . 1 . . . . . . . . . . 1 . Repair Stations 3 | . . . 1 . 1 . . . . . . . . . 1 . Recycling Units 4 | . . 1 1 . 1 . . . . . . . . 1 . . Scanalyzers . | . . . . . . . . . . . . . . . . . Garrison Access 4 | . . . . 1 1 . . . . 1 . 1 . . . . Total Hacks 86 | . 6 15 17 3 12 1 . 2 . 7 . 2 . 9 8 4 Successful 41 | . 5 5 11 2 3 1 . 1 . 2 . 1 . 6 3 1 Failed 45 | . 1 10 6 1 9 . . 1 . 5 . 1 . 3 5 3 Catastrophic 7 | . . 2 1 . . . . 1 . . . 1 . 1 1 . Database Lockouts . | . . . . . . . . . . . . . . . . . Manual 8 | . 2 4 . . . . . 1 . . . . . 1 . . Terminals 52 | . 6 14 12 1 4 . . 2 . 4 . 1 . 3 1 4 Fabricators 2 | . . . . 1 . . . . . . . . . . 1 . Repair Stations 10 | . . . 2 . 2 . . . . . . . . . 6 . Recycling Units 13 | . . 1 3 . 3 . . . . . . . . 6 . . Scanalyzers . | . . . . . . . . . . . . . . . . . Garrison Access 8 | . . . . 1 3 . . . . 3 . 1 . . . . Terminal Hacks 23 | . 5 4 6 1 1 1 . 1 . 1 . 1 . 1 . 1 Record 5 | . . 3 2 . . . . . . . . . . . . . Prototype ID Bank 2 | . 1 . 1 . . . . . . . . . . . . . Open Door 1 | . . . . . . 1 . . . . . . . . . . Open DSF 4 | . . . . 1 . . . 1 . 1 . 1 . . . . Emergency Access Points 1 | . . . . . . . . . . . . . . 1 . . Alert Level 1 | . . . 1 . . . . . . . . . . . . . Disarm Traps 1 | . 1 . . . . . . . . . . . . . . . Reprogram Traps 1 | . . . . . 1 . . . . . . . . . . . Dispatch Records 2 | . 1 1 . . . . . . . . . . . . . . Recall Investigation 1 | . . . 1 . . . . . . . . . . . . . Hauler Manifests 1 | . 1 . . . . . . . . . . . . . . . Zone Layout 3 | . 1 . 1 . . . . . . . . . . . . 1 Fabricator Hacks 2 | . . . . 1 . . . . . . . . . . 1 . Network Status 2 | . . . . 1 . . . . . . . . . . 1 . Repair Station Hacks 5 | . . . 2 . 1 . . . . . . . . . 2 . Scan Component 3 | . . . 1 . 1 . . . . . . . . . 1 . Repair 2 | . . . 1 . . . . . . . . . . . 1 . Recycling Unit Hacks 10 | . . 1 3 . 1 . . . . . . . . 5 . . Recycle Component 2 | . . . . . . . . . . . . . . 2 . . Process 2 | . . . 1 . . . . . . . . . . 1 . . Report Inventory 3 | . . 1 1 . . . . . . . . . . 1 . . Retrieve Matter 3 | . . . 1 . 1 . . . . . . . . 1 . . Scanalyzer . | . . . . . . . . . . . . . . . . . Garrison Access Hacks 1 | . . . . . . . . . . 1 . . . . . . Seal Access 1 | . . . . . . . . . . 1 . . . . . . Unauthorized Hacks . | . . . . . . . . . . . . . . . . . Terminals . | . . . . . . . . . . . . . . . . . Fabricators . | . . . . . . . . . . . . . . . . . Repair Stations . | . . . . . . . . . . . . . . . . . Recycling Units . | . . . . . . . . . . . . . . . . . Scanalyzers . | . . . . . . . . . . . . . . . . . Garrison Access . | . . . . . . . . . . . . . . . . . Data Cores Recovered . | . . . . . . . . . . . . . . . . . Used . | . . . . . . . . . . . . . . . . . Hacking Detections 25 | . . 5 4 1 5 . . 1 . 2 . 1 . 3 2 1 Full Trace Events 2 | . . 1 . . 1 . . . . . . . . . . . Feedback Events . | . . . . . . . . . . . . . . . . . Feedback Blocked . | . . . . . . . . . . . . . . . . . Robot Schematics Acquired . | . . . . . . . . . . . . . . . . . Robots Built . | . . . . . . . . . . . . . . . . . Authchips . | . . . . . . . . . . . . . . . . . Time . | . . . . . . . . . . . . . . . . . Total Robot Build Rating . | . . . . . . . . . . . . . . . . . Part Schematics Acquired 1 | . . . . . . . . . . . . . . . . 1 Parts Built . | . . . . . . . . . . . . . . . . . Authchips . | . . . . . . . . . . . . . . . . . Time . | . . . . . . . . . . . . . . . . . Total Part Build Rating . | . . . . . . . . . . . . . . . . . Parts Repaired 2 | . . . 1 . . . . . . . . . . . 1 . Time 69 | . . . 32 . . . . . . . . . . . 37 . Parts Recycled 2 | . . . . . . . . . . . . . . 2 . . Recycled Matter 317 | . . . 67 . . . . . . . . . . 250 . . Retrieved Matter 367 | . . . 117 . . . . . . . . . . 250 . . Retrieved Components . | . . . . . . . . . . . . . . . . . Parts Scanalyzed . | . . . . . . . . . . . . . . . . . Part Schematics Acquired . | . . . . . . . . . . . . . . . . . Parts Damaged . | . . . . . . . . . . . . . . . . . Bothacking | -11 -10 -9 -8 -7 -6 -6 -6 -5 -5 -4 -4 -3 -3 -2 -2 -2 ------------ Run | Yrd Mat Mat Mat Fac Fac Low Low Fac DSF Fac Upp Res DSF Res Tes Sec Used RIF Installer . | . . . . . . . . . . . . . . . . . Robots Hacked 1 | . . . 1 . . . . . . . . . . . . . Non-combat . | . . . . . . . . . . . . . . . . . Combat 1 | . . . 1 . . . . . . . . . . . . . Robot Hacks Applied 1 | . . . 1 . . . . . . . . . . . . . parse_system 1 | . . . 1 . . . . . . . . . . . . . Relay Couplers Released 2 | . . . . . . . . . . 2 . . . . . . Machine Destruction 2 | . . . . . . . . . . 2 . . . . . . Fabnet Peak Effective % . | . . . . . . . . . . . . . . . . . Robots Rewired . | . . . . . . . . . . . . . . . . . Allies Hacked . | . . . . . . . . . . . . . . . . . Hacks Repelled . | . . . . . . . . . . . . . . . . . Allies | -11 -10 -9 -8 -7 -6 -6 -6 -5 -5 -4 -4 -3 -3 -2 -2 -2 -------- Run | Yrd Mat Mat Mat Fac Fac Low Low Fac DSF Fac Upp Res DSF Res Tes Sec Total Allies 1 | . . . . . . . . . . . 1 . . . . . Largest Group 1 | . . . . . . . . . . . 1 . . . . . Highest-Rated Group 135 | . . . . . . . . . . . 135 . . . . . Highest-Rated Ally 135 | . . . . . . . . . . . 135 . . . . . Total Orders . | . . . . . . . . . . . . . . . . . Ally Attacks . | . . . . . . . . . . . . . . . . . Total Damage . | . . . . . . . . . . . . . . . . . Kills . | . . . . . . . . . . . . . . . . . Allies Corrupted . | . . . . . . . . . . . . . . . . . Allies Melted . | . . . . . . . . . . . . . . . . . Intel | -11 -10 -9 -8 -7 -6 -6 -6 -5 -5 -4 -4 -3 -3 -2 -2 -2 ------- Run | Yrd Mat Mat Mat Fac Fac Low Low Fac DSF Fac Upp Res DSF Res Tes Sec Robot Analysis Total . | . . . . . . . . . . . . . . . . . Derelict Logs Recovered 1 | . . . . . . 1 . . . . . . . . . . Drone Launches . | . . . . . . . . . . . . . . . . . Drone Recoveries . | . . . . . . . . . . . . . . . . . Exploration | -11 -10 -9 -8 -7 -6 -6 -6 -5 -5 -4 -4 -3 -3 -2 -2 -2 ------------- Run | Yrd Mat Mat Mat Fac Fac Low Low Fac DSF Fac Upp Res DSF Res Tes Sec Turns Passed 12195 | 66 888 1354 2270 1039 1754 874 74 336 146 1772 149 95 59 337 589 393 Spaces Moved 8741 | 39 465 661 903 613 1018 586 42 214 83 1039 237 152 104 586 1525 474 Core 600 | 9 . . . . 3 5 . . . 52 237 76 . . . 218 Treads 2276 | 30 465 661 903 217 . . . . . . . . . . . . Legs 3199 | . . . . 396 1015 581 42 214 83 868 . . . . . . Wheels . | . . . . . . . . . . . . . . . . . Hover 119 | . . . . . . . . . . 119 . . . . . . Flight 2547 | . . . . . . . . . . . . 76 104 586 1525 256 Fastest Speed 28 | 50 160 160 160 120 120 120 120 120 120 50 50 40 34 28 28 30 Average Speed 108 | 143 160 166 187 134 126 124 120 156 176 132 50 45 34 30 28 68 Slowest Speed 800 | 160 160 240 240 190 800 550 120 190 190 350 50 50 40 34 30 200 Overloaded Moves . | . . . . . . . . . . . . . . . . . Propulsion Burnouts . | . . . . . . . . . . . . . . . . . Robots Hopped 1 | . . . . . . . . . . . . . . . . 1 Cave-ins Triggered 1 | . . . 1 . . . . . . . . . . . . . Exploration Rate (%) 35 | 5 73 60 59 12 16 71 8 8 52 12 27 4 77 17 70 25 Regions Visited 16 Branch Regions 5 Pre-discovered Areas . | . . . . . . . . . . . . . . . . . Known Exits Taken 6 | . . 1 . . 1 . 1 1 . 1 . 1 . . . . Unknown Exits Taken 8 | 1 1 . 1 1 . 1 . . . . 1 . . 1 1 . Scrap Searched 5 | . . . . . . 3 . . . . 2 . . . . . Spaces Dug 31 | . . . . . 8 9 . . . . . . . 2 12 . Terrain Destroyed 331 | . . . 21 . 136 37 4 . . 85 . . 20 2 21 5 Melee 31 | . . . . . 8 9 . . . . . . . 2 12 . Projectile 45 | . . . . . 8 . 4 . . 33 . . . . . . AOE 255 | . . . 21 . 120 28 . . . 52 . . 20 . 9 5 Terrain Rammed . | . . . . . . . . . . . . . . . . . Walls Destroyed . | . . . . . . . . . . . . . . . . . Machines Disabled . | . . . . . . . . . . . . . . . . . Actions | -11 -10 -9 -8 -7 -6 -6 -6 -5 -5 -4 -4 -3 -3 -2 -2 -2 --------- Run | Yrd Mat Mat Mat Fac Fac Low Low Fac DSF Fac Upp Res DSF Res Tes Sec Total 10796 | 46 546 788 1371 802 1356 681 54 215 82 1344 267 179 124 741 1664 536 Wait 1262 | . 22 21 376 145 171 37 . . . 228 24 . . 119 91 28 Move 8723 | 38 464 660 902 612 1017 585 41 213 82 1038 236 151 103 585 1524 472 Hop 1 | . . . . . . . . . . . . . . . . 1 Pick Up 81 | 2 9 6 6 7 13 9 . 1 . 9 2 5 1 7 3 1 Fast Attach 70 | 6 2 3 9 4 11 5 1 . . 9 . . 6 5 6 3 Attach 65 | . 1 5 6 4 13 8 1 1 . 9 2 2 4 1 5 3 Detach 31 | . . 2 4 3 9 2 . . . 1 1 . 2 . 4 3 Swap 27 | . 3 8 5 2 6 1 . . . 2 . . . . . . Drop 50 | . 4 6 3 8 10 3 . . . 2 . 3 . 4 6 1 Fire 345 | . 37 75 54 17 78 21 11 . . 46 . . . . 2 4 Melee 44 | . . . 3 . 17 10 . . . . . . . 2 12 . Ram 3 | . . . . . . . . . . . 2 . . . . 1 Kick 11 | . . . . . 11 . . . . . . . . . . . Crush 9 | . 4 2 3 . . . . . . . . . . . . . Escape Stasis 74 | . . . . . . . . . . . . 18 8 18 11 19 Rewire . | . . . . . . . . . . . . . . . . . Trap . | . . . . . . . . . . . . . . . . . Miscellaneous . | . . . . . . . . . . . . . . . . . Route ------- -11/Scrapyard -10/Materials (discovered 3 exits: *Mat x2 / [*Min]) -9/Materials (discovered 2 exits: *Mat / *Min) -8/Materials -7/Factory -6/Factory -6/Lower Caves -6/Lower Caves -5/Factory (discovered 2 exits: Fac / DSF) -5/DSF -4/Factory -4/Upper Caves -3/Research -3/DSF -2/Research (discovered 2 exits: [*Acc] / *Tes) -2/Testing -2/Section 7 History --------- Turn | Location | Event 17 | -11/Scrapyard | Discovered new exit (range 16) 67 | -11/Scrapyard | Entered Materials 247 | -10/Materials | Discovered new exit (range 12) 305 | -10/Materials | Build established: Mutant 467 | -10/Materials | Discovered new exit (range 15) 755 | -10/Materials | Discovered new exit (range 15) 955 | -10/Materials | Entered another Materials area 955 | -9/Materials | Evolved 2 slots: Utility x2 1351 | -9/Materials | Build established: Scavenger-Mutant 1663 | -9/Materials | Discovered new exit (range 9) 1684 | -9/Materials | Identified exit to Mines 2216 | -9/Materials | Discovered new exit (range 16) 2307 | -9/Materials | Identified exit to Materials 2309 | -9/Materials | Entered another Materials area 2309 | -8/Materials | Evolved 2 slots: Utility x2 2466 | -8/Materials | Destroyed 9 combat bots 2472 | -8/Materials | Lost 4 parts (1n2u1w) 2479 | -8/Materials | Crushed by falling debris 2510 | -8/Materials | Lost 3 parts (2u1w) 2740 | -8/Materials | Build established: Mutant 2945 | -8/Materials | Repaired Hvy. Assault Rifle 3232 | -8/Materials | Build established: Scavenger-Mutant 3669 | -8/Materials | Build established: Mutant 4259 | -8/Materials | Garrison activated, responded to threat 4435 | -8/Materials | Discovered new exit (range 20) 4579 | -8/Materials | Entered Factory 4579 | -7/Factory | Evolved 2 slots: Power x1, Propulsion x1 4867 | -7/Factory | Build established: Scavenger-Mutant 5230 | -7/Factory | Build established: Mutant 5582 | -7/Factory | Discovered new exit (range 12) 5618 | -7/Factory | Entered another Factory area 5618 | -6/Factory | Evolved 2 slots: Utility x2 5937 | -6/Factory | Spotted B-75 Beast 6093 | -6/Factory | Build established: Infiltrator-Mutant 6431 | -6/Factory | Build established: Mutant 6661 | -6/Factory | Cargo convoy interrupted 6819 | -6/Factory | Lost 3 parts (2u1w) 7018 | -6/Factory | Discovered new exit (range 19) 7200 | -6/Factory | Lost 3 parts (2p1u) 7365 | -6/Factory | Identified exit to Lower Caves 7372 | -6/Factory | Entered Lower Caves 7379 | -6/Lower Caves | Core integrity fell below 50% 7397 | -6/Lower Caves | Lost 3 parts (2n1w) 7552 | -6/Lower Caves | Build established: Infiltrator-Mutant 7554 | -6/Lower Caves | Core integrity fell below 20% 7586 | -6/Lower Caves | Lost 6 parts (2n2u2w) 7688 | -6/Lower Caves | Attacked by a faux Warlord 7786 | -6/Lower Caves | Attracted the attention of an 0b10 checkpoint 7853 | -6/Lower Caves | Build established: Mutant 7968 | -6/Lower Caves | Learned 8 Factory zone layouts 8044 | -6/Lower Caves | Encountered a Warlord checkpoint 8090 | -6/Lower Caves | Discovered new exit (range 11) 8246 | -6/Lower Caves | Entered another Lower Caves area 8252 | -6/Lower Caves | Discovered new exit (range 17) 8319 | -6/Lower Caves | Identified exit to Factory 8320 | -6/Lower Caves | Entered Factory 8320 | -5/Factory | Evolved 2 slots: Propulsion x1, Utility x1 8321 | -5/Factory | Identified exit to Factory 8653 | -5/Factory | Identified exit to DSF 8656 | -5/Factory | Entered DSF 8675 | -5/DSF | Discovered exit to Factory (range 19) 8751 | -5/DSF | Additional patrols routed to DSF 8802 | -5/DSF | Entered Factory 8802 | -4/Factory | Evolved 2 slots: Power x1, Utility x1 8876 | -4/Factory | Discovered new exit (range 11) 8946 | -4/Factory | Identified exit to Upper Caves 9181 | -4/Factory | Spotted B-86 Titan 9570 | -4/Factory | Build established: Scavenger-Skirmisher 9969 | -4/Factory | Lost 4 parts (1p1n1u1w) 10434 | -4/Factory | Core integrity fell below 50% 10464 | -4/Factory | Lost 6 parts (2p2n1u1w) 10534 | -4/Factory | System corruption reached 10% 10546 | -4/Factory | Released all parts (7) 10574 | -4/Factory | Entered Upper Caves 10605 | -4/Upper Caves | Lost 6 parts (2n2u2w) 10685 | -4/Upper Caves | Core integrity fell below 20% 10716 | -4/Upper Caves | AD-0RF showed up to help 10718 | -4/Upper Caves | AD-0RF revealed a hidden path 10723 | -4/Upper Caves | Entered Research 10723 | -3/Research | Evolved 2 slots: Propulsion x1, Weapon x1 10818 | -3/Research | Identified exit to DSF 10818 | -3/Research | Entered DSF 10819 | -3/DSF | Joined Warlord attack on 0b10 via DSF 10840 | -3/DSF | Additional patrols routed to DSF 10860 | -3/DSF | Discovered new exit (range 12) 10868 | -3/DSF | Build established: Mutant 10877 | -3/DSF | Entered Research 10877 | -2/Research | Evolved 2 slots: Propulsion x1, Utility x1 10904 | -2/Research | Lost 5 allies 10960 | -2/Research | 7 allies followed out of DSF 10984 | -2/Research | Lost 4 allies 11202 | -2/Research | Discovered new exit (range 10) 11214 | -2/Research | Discovered new exit (range 6) 11214 | -2/Research | Entered Testing 11283 | -2/Testing | Build established: Sprinter 11367 | -2/Testing | Repaired Adv. Cloaking Device 11390 | -2/Testing | Found Prototype Launcher 11749 | -2/Testing | Spotted Fortress 11753 | -2/Testing | Scanned by Researcher 11767 | -2/Testing | Identified Point Singularity Launcher 11801 | -2/Testing | Discovered new exit (range 6) 11803 | -2/Testing | Entered Section 7 11814 | -2/Section 7 | Lost 7 parts (2p1n4u) 11833 | -2/Section 7 | Scanned by Researcher 11841 | -2/Section 7 | Core integrity fell below 50% 11846 | -2/Section 7 | Found Alien Artifact 11846 | -2/Section 7 | Identified Spacefold Activator 12085 | -2/Section 7 | System corruption reached 10% 12109 | -2/Section 7 | Spotted Alpha 7 12110 | -2/Section 7 | Spotted B-90 Cyclops 12110 | -2/Section 7 | Spotted Alpha 7 12179 | -2/Section 7 | Lost 5 parts (2n2u1w) 12189 | -2/Section 7 | Core integrity fell below 20% 12194 | -2/Section 7 | Spotted B-99 Colossus 12196 | -2/Section 7 | Destroyed by S-43 Plague with Heavy Machine Gun Last Messages --------------- Identified Imp. Q-thruster. Faulty integration triggers energy drain (-40). Dropped Faulty Imp. Q-thruster. Cld. Impulse Thruster destroyed. Enh. Quantum Rifle destroyed. Penetrated by Slug. Slug penetrates Door. Door malfunctions. Power Amplifier destroyed. SKDTUUPNZ86GH 9UC H